fUST/lending_fUST_20240914
["ID","MTS","AMOUNT","RATE_DAILY","PERIOD"]
[338104062,1726278657004,-648.64,0.00011506,2]
[338104063,1726278657014,-500.0,0.00011506,2]
[338104064,1726278657024,-504.68330935,0.00011506,2]
[338104065,1726278657034,-500.0,0.00011506,2]
[338104066,1726278657043,-500.0,0.00011506,2]
[338104067,1726278657053,-500.0,0.00011506,2]
[338104068,1726278657063,-502.29149763,0.00011506,2]
[338104069,1726278657073,-500.0,0.00011506,2]
[338104070,1726278657086,-1342.53,0.00011506,2]
[338104071,1726278657097,-500.0,0.00011506,2]
[338104072,1726278657108,-5361.21,0.00011506,2]
[338104073,1726278657117,-500.0,0.00011506,2]
[338104074,1726278657127,-500.0,0.00011506,2]
[338104075,1726278657141,-500.0,0.00011506,2]
[338104076,1726278657153,-500.0,0.00011506,2]
[338104077,1726278657165,-500.0,0.00011506,2]
[338104078,1726278657175,-500.0,0.00011506,2]
[338104079,1726278657184,-500.0,0.00011506,2]
[338104080,1726278657194,-500.0,0.00011506,2]
[338104081,1726278657204,-500.0,0.00011506,2]
[338104082,1726278657215,-500.0,0.00011506,2]
[338104083,1726278657226,-502.10554136,0.00011506,2]
[338104084,1726278657236,-500.0,0.00011506,2]
[338104085,1726278657246,-500.29667237,0.00011506,2]
[338104086,1726278657255,-502.40264313,0.00011506,2]
[338104087,1726278657266,-500.0,0.00011506,2]
[338104088,1726278657276,-500.0,0.00011506,2]
[338104089,1726278657435,-503.08704658,0.00011506,2]
[338104090,1726278657445,-502.75726799,0.00011506,2]
[338104091,1726278657455,-500.0,0.00011506,2]
[338104092,1726278657466,-548.56873542,0.00011506,2]
[338104093,1726278657478,-902.29,0.00011506,2]
[338104094,1726278657489,-500.0,0.00011506,2]
[338104095,1726278657499,-501.70352211,0.00011506,2]
[338104096,1726278657508,-500.0,0.00011506,2]
[338104097,1726278657518,-500.0,0.00011506,2]
[338104098,1726278657528,-502.93683962,0.00011506,2]
[338104099,1726278657538,-500.0,0.00011506,2]
[338104100,1726278657548,-750.39,0.00011506,2]
[338104101,1726278657559,-331.86010775,0.00011506,2]
[338104102,1726278657569,-500.0,0.00011506,2]
[338104103,1726278657579,-500.0,0.00011506,2]
[338104104,1726278657589,-500.0,0.00011506,2]
[338104105,1726278657599,-500.0,0.00011506,2]
[338104106,1726278657610,-500.0,0.00011506,2]
[338104107,1726278657620,-500.0,0.00011506,2]
[338104108,1726278657630,-500.0,0.00011506,2]
[338104109,1726278657640,-500.0,0.00011506,2]
[338104110,1726278657650,-500.0,0.00011506,2]
[338104111,1726278657660,-506.16971965,0.00011506,2]
[338104112,1726278657670,-500.0,0.00011506,2]
[338104113,1726278657680,-500.0,0.00011506,2]
[338104114,1726278657689,-500.0,0.00011506,2]
[338104115,1726278657699,-500.0,0.00011506,2]
[338104116,1726278657709,-500.0,0.00011506,2]
[338104117,1726278657718,-500.0,0.00011506,2]
[338104118,1726278657727,-500.0,0.00011506,2]
[338104119,1726278657737,-500.0,0.00011506,2]
[338104120,1726278657746,-337.35367128,0.00011506,2]
[338104121,1726278657755,-500.0,0.00011506,2]
[338104122,1726278657764,-500.0,0.00011506,2]
[338104123,1726278657774,-500.0,0.00011506,2]
[338104124,1726278657783,-502.23816751,0.00011506,2]
[338104125,1726278657793,-538.69,0.00011506,2]
[338104126,1726278657806,-500.0,0.00011506,2]
[338104127,1726278657816,-613.9,0.00011506,2]
[338104128,1726278657827,-500.0,0.00011506,2]
[338104129,1726278657836,-506.74,0.00011506,2]
[338104130,1726278657846,-500.0,0.00011506,2]
[338104131,1726278657856,-500.0,0.00011506,2]
[338104132,1726278657865,-500.0,0.00011506,2]
[338104133,1726278657875,-500.0,0.00011506,2]
[338104134,1726278657885,-500.0,0.00011506,2]
[338104135,1726278657896,-500.0,0.00011506,2]
[338104136,1726278657907,-500.0,0.00011506,2]
[338104137,1726278657918,-500.0,0.00011506,2]
[338104138,1726278657929,-580.70709204,0.00011506,2]
[338104139,1726278657940,-11706.86,0.00011506,2]
[338104140,1726278657950,-500.0,0.00011506,2]
[338104141,1726278657960,-502.11909549,0.00011506,2]
[338104142,1726278657969,-600.45797364,0.00011506,2]
[338104143,1726278657979,-501.02156009,0.00011506,2]
[338104144,1726278657990,-500.0,0.00011506,2]
[338104145,1726278658000,-500.0,0.00011506,2]
[338104146,1726278658011,-501.27322743,0.00011506,2]
[338104147,1726278658020,-186.05425676,0.00011506,2]
[338104148,1726278658031,-500.0,0.00011506,2]
[338104149,1726278658040,-509.98305529,0.00011506,2]
[338104150,1726278658049,-500.0,0.00011506,2]
[338104151,1726278658059,-500.0,0.00011506,2]
[338104152,1726278658069,-500.0,0.00011506,2]
[338104153,1726278658079,-500.0,0.00011506,2]
[338104154,1726278658089,-517.132265,0.00011506,2]
[338104155,1726278658099,-501.42308187,0.00011506,2]
[338104156,1726278658108,-500.0,0.00011506,2]
[338104157,1726278658118,-500.0,0.00011506,2]
[338104158,1726278658128,-500.0,0.00011506,2]
[338104159,1726278658139,-503.86309425,0.00011506,2]
[338104160,1726278658148,-500.0,0.00011506,2]
[338104161,1726278658158,-500.0,0.00011506,2]
[338104162,1726278658167,-500.0,0.00011506,2]
[338104163,1726278658176,-501.47836458,0.00011506,2]
[338104164,1726278658186,-500.0,0.00011506,2]
[338104165,1726278658196,-500.0,0.00011506,2]
[338104166,1726278658206,-500.0,0.00011506,2]
[338104167,1726278658215,-500.0,0.00011506,2]
[338104168,1726278658224,-500.0,0.00011506,2]
[338104169,1726278658234,-500.0,0.00011506,2]
[338104170,1726278658243,-500.0,0.00011506,2]
[338104171,1726278658253,-2818.0,0.00011506,2]
[338104172,1726278658262,-500.0,0.00011506,2]
[338104173,1726278658272,-500.0,0.00011506,2]
[338104174,1726278658282,-500.0,0.00011506,2]
[338104175,1726278658292,-501.31492651,0.00011506,2]
[338104176,1726278658302,-502.12339566,0.00011506,2]
[338104177,1726278658311,-502.23400361,0.00011506,2]
[338104178,1726278658322,-500.0,0.00011506,2]
[338104179,1726278658334,-500.0,0.00011506,2]
[338104180,1726278658344,-502.10690209,0.00011506,2]
[338104181,1726278658354,-500.0,0.00011506,2]
[338104182,1726278658364,-648.49,0.00011506,2]
[338104183,1726278658373,-1750.46,0.00011506,2]
[338104184,1726278658383,-500.0,0.00011506,2]
[338104185,1726278658392,-500.0,0.00011506,2]
[338104186,1726278658402,-500.0,0.00011506,2]
[338104187,1726278658412,-500.0,0.00011506,2]
[338104188,1726278658421,-518.55433097,0.00011506,2]
[338104189,1726278658431,-580.8771972,0.00011506,2]
[338104190,1726278658441,-500.0,0.00011506,2]
[338104191,1726278658451,-500.0,0.00011506,2]
[338104192,1726278658460,-500.0,0.00011506,2]
[338104193,1726278658470,-500.0,0.00011506,2]
[338104194,1726278658479,-500.0,0.00011506,2]
[338104195,1726278658489,-500.0,0.00011506,2]
[338104196,1726278658499,-500.0,0.00011506,2]
[338104197,1726278658508,-500.0,0.00011506,2]
[338104198,1726278658518,-505.31216729,0.00011506,2]
[338104199,1726278658527,-500.0,0.00011506,2]
[338104200,1726278658537,-500.0,0.00011506,2]
[338104201,1726278658546,-500.0,0.00011506,2]
[338104202,1726278658556,-500.0,0.00011506,2]
[338104203,1726278658565,-500.0,0.00011506,2]
[338104204,1726278658574,-501.53951875,0.00011506,2]
[338104205,1726278658584,-500.0,0.00011506,2]
[338104206,1726278658594,-500.0,0.00011506,2]
[338104207,1726278658604,-502.33255873,0.00011506,2]
[338104208,1726278658614,-500.0,0.00011506,2]
[338104209,1726278658624,-500.0,0.00011506,2]
[338104210,1726278658634,-500.0,0.00011506,2]
[338104211,1726278658645,-501.3781389,0.00011506,2]
[338104212,1726278658662,-500.0,0.00011506,2]
[338104213,1726278658672,-506.7015174,0.00011506,2]
[338104214,1726278658681,-500.0,0.00011506,2]
[338104215,1726278658691,-500.0,0.00011506,2]
[338104216,1726278658700,-758.31,0.00011506,2]
[338104217,1726278658710,-500.0,0.00011506,2]
[338104218,1726278658720,-4241.15,0.00011506,2]
[338104219,1726278658730,-600.98,0.00011506,2]
[338104220,1726278658740,-500.0,0.00011506,2]
[338104221,1726278658750,-500.0,0.00011506,2]
[338104222,1726278658759,-500.0,0.00011506,2]
[338104223,1726278658768,-500.0,0.00011506,2]
[338104224,1726278658778,-500.0,0.00011506,2]
[338104225,1726278658788,-500.0,0.00011506,2]
[338104226,1726278658797,-500.0,0.00011506,2]
[338104227,1726278658811,-500.0,0.00011506,2]
[338104228,1726278658821,-501.56204454,0.00011506,2]
[338104229,1726278658831,-398.30315413,0.00011506,2]
[338104230,1726278658840,-500.0,0.00011506,2]
[338104231,1726278658851,-509.18624033,0.00011506,2]
[338104232,1726278658860,-501.90834421,0.00011506,2]
[338104233,1726278658870,-3315.43,0.00011506,2]
[338104234,1726278658882,-500.0,0.00011506,2]
[338104235,1726278658894,-502.88938056,0.00011506,2]
[338104236,1726278658904,-500.0,0.00011506,2]
[338104238,1726278658914,-500.0,0.00011506,2]
[338104239,1726278658923,-501.12616769,0.00011506,2]
[338104240,1726278658933,-500.0,0.00011506,2]
[338104241,1726278658942,-500.0,0.00011506,2]
[338104242,1726278658952,-500.0,0.00011506,2]
[338104243,1726278658961,-500.0,0.00011506,2]
[338104244,1726278658971,-696.41,0.00011506,2]
[338104245,1726278658980,-500.0,0.00011506,2]
[338104246,1726278658990,-500.0,0.00011506,2]
[338104247,1726278659000,-500.0,0.00011506,2]
[338104248,1726278659009,-502.53148546,0.00011506,2]
[338104249,1726278659019,-500.0,0.00011506,2]
[338104250,1726278659028,-500.0,0.00011506,2]
[338104251,1726278659038,-501.57396426,0.00011506,2]
[338104252,1726278659047,-521.12,0.00011506,2]
[338104253,1726278659057,-500.0,0.00011506,2]
[338104254,1726278659067,-500.0,0.00011506,2]
[338104255,1726278659077,-500.0,0.00011506,2]
[338104256,1726278659088,-500.0,0.00011506,2]
[338104257,1726278659100,-500.0,0.00011506,2]
[338104258,1726278659111,-500.0,0.00011506,2]
[338104259,1726278659121,-504.94013594,0.00011506,2]
[338104260,1726278659131,-534.60567704,0.00011506,2]
[338104261,1726278659141,-500.0,0.00011506,2]
[338104262,1726278659152,-500.0,0.00011506,2]
[338104263,1726278659164,-500.0,0.00011506,2]
[338104264,1726278659174,-505.18351267,0.00011506,2]
[338104265,1726278659185,-500.0,0.00011506,2]
[338104266,1726278659195,-500.0,0.00011506,2]
[338104267,1726278659205,-500.0,0.00011506,2]
[338104268,1726278659312,-500.0,0.00011506,2]
[338104269,1726278659322,-500.0,0.00011506,2]
[338104270,1726278659332,-500.0,0.00011506,2]
[338104271,1726278659343,-503.80522659,0.00011506,2]
[338104272,1726278659352,-500.0,0.00011506,2]
[338104273,1726278659362,-500.0,0.00011506,2]
[338104274,1726278659371,-500.0,0.00011506,2]
[338104275,1726278659380,-500.0,0.00011506,2]
[338104276,1726278659393,-500.0,0.00011506,2]
[338104277,1726278659405,-500.0,0.00011506,2]
[338104278,1726278659415,-504.97599409,0.00011506,2]
[338104279,1726278659425,-500.0,0.00011506,2]
[338104280,1726278659434,-419.23915899,0.00011506,2]
[338104281,1726278659444,-500.0,0.00011506,2]
[338104282,1726278659454,-410.70646559,0.00011506,2]
[338104283,1726278659464,-501.93988157,0.00011506,2]
[338104284,1726278659475,-500.0,0.00011506,2]
[338104285,1726278659486,-511.65602876,0.00011506,2]
[338104286,1726278659496,-504.39118459,0.00011506,2]
[338104287,1726278659506,-609.65,0.00011506,2]
[338104288,1726278659515,-500.0,0.00011506,2]
[338104289,1726278659525,-500.0,0.00011506,2]
[338104290,1726278659535,-503.36185085,0.00011506,2]
[338104291,1726278659544,-698.16,0.00011506,2]
[338104292,1726278659554,-500.0,0.00011506,2]
[338104293,1726278659564,-500.0,0.00011506,2]
[338104294,1726278659574,-501.15,0.00011506,2]
[338104295,1726278659584,-798.51,0.00011506,2]
[338104296,1726278659594,-636.95,0.00011506,2]
[338104297,1726278659603,-1161.42,0.00011506,2]
[338104298,1726278659616,-500.0,0.00011506,2]
[338104299,1726278659626,-500.0,0.00011506,2]
[338104300,1726278659635,-500.0,0.00011506,2]
[338104301,1726278659644,-728.64,0.00011506,2]
[338104302,1726278659655,-514.4923882,0.00011506,2]
[338104303,1726278659664,-183.225,0.00011542,2]
[338104304,1726278659674,-187.31720901,0.00011542,2]
[338104305,1726278659683,-153.0,0.000116,2]
[338104306,1726278659693,-153.0,0.000116,2]
[338104307,1726278659702,-153.9408196,0.000116,2]
[338104308,1726278659712,-153.0,0.000116,2]
[338104309,1726278659722,-385.2975734,0.000116,2]
[338104310,1726278659732,-208.4916004,0.000116,2]
[338104311,1726278659745,-153.0,0.000116,2]
[338104312,1726278659755,-815.2327126,0.000116,2]
[338104313,1726278659765,-208.4916004,0.000116,2]
[338104314,1726278659775,-153.0,0.000116,2]
[338104315,1726278659785,-208.4916004,0.000116,2]
[338104316,1726278659794,-208.4916004,0.000116,2]
[338104317,1726278659809,-150.0,0.00011642,2]
[338104318,1726278659820,-718.59,0.00011657,2]
[338104319,1726278659829,-500.0,0.00011657,2]
[338104320,1726278659839,-525.712,0.00011658,2]
[338104321,1726278659848,-150.794,0.00011658,2]
[338104322,1726278659858,-283.226,0.00011658,2]
[338104323,1726278659868,-15847.488,0.00011658,2]
[338104324,1726278659878,-150.207,0.00011658,2]
[338104325,1726278659887,-6830.0113713,0.0001174,2]
[338104326,1726278659899,-150.01,0.00011779,2]
[338104327,1726278659908,-2282.2580597,0.00011779,2]
[338104328,1726278659918,-718.59,0.00011779,2]
[338104329,1726278659928,-718.59,0.00011779,2]
[338104330,1726278659940,-718.59,0.00011779,2]
[338104331,1726278659950,-718.59,0.00011779,2]
[338104332,1726278659961,-718.59,0.00011779,2]
[338104333,1726278659971,-718.59,0.00011779,2]
[338104334,1726278659981,-718.59,0.00011779,2]
[338104335,1726278659990,-718.69996665,0.00011779,2]
[338104336,1726278660001,-503.19426067,0.00011779,2]
[338104337,1726278660010,-500.0,0.0001178,2]
[338104338,1726278660020,-500.0,0.0001178,2]
[338104339,1726278660030,-500.0,0.0001178,2]
[338104340,1726278660039,-500.0,0.0001178,2]
[338104341,1726278660049,-500.0,0.0001178,2]
[338104342,1726278660060,-500.0,0.0001178,2]
[338104343,1726278660072,-500.0,0.0001178,2]
[338104344,1726278660082,-500.0,0.0001178,2]
[338104345,1726278660092,-500.0,0.0001178,2]
[338104346,1726278660101,-500.0,0.0001178,2]
[338104347,1726278660111,-2500.0,0.0001178,2]
[338104348,1726278660120,-507.64768056,0.0001178,2]
[338104349,1726278660130,-500.0,0.0001178,2]
[338104350,1726278660140,-500.0,0.0001178,2]
[338104351,1726278660149,-500.0,0.0001178,2]
[338104352,1726278660159,-500.0,0.0001178,2]
[338104353,1726278660169,-500.0,0.0001178,2]
[338104354,1726278660179,-500.0,0.0001178,2]
[338104355,1726278660189,-500.0,0.0001178,2]
[338104356,1726278660199,-620.19,0.0001178,2]
[338104357,1726278660210,-500.0,0.0001178,2]
[338104358,1726278660220,-500.0,0.0001178,2]
[338104359,1726278660230,-367.64144668,0.0001178,2]
[338104360,1726278660240,-500.0,0.0001178,2]
[338104361,1726278660250,-500.0,0.0001178,2]
[338104362,1726278660259,-500.0,0.0001178,2]
[338104363,1726278660269,-500.0,0.0001178,2]
[338104364,1726278660280,-500.0,0.0001178,2]
[338104365,1726278660290,-500.0,0.0001178,2]
[338104366,1726278660301,-500.0,0.0001178,2]
[338104367,1726278660312,-500.0,0.0001178,2]
[338104368,1726278660322,-2648.28,0.0001178,2]
[338104369,1726278660332,-500.0,0.0001178,2]
[338104370,1726278660342,-508.24243214,0.0001178,2]
[338104371,1726278660352,-500.0,0.0001178,2]
[338104372,1726278660362,-500.0,0.0001178,2]
[338104373,1726278660373,-500.0,0.0001178,2]
[338104374,1726278660383,-583.21736708,0.0001178,2]
[338104375,1726278660394,-500.0,0.0001178,2]
[338104376,1726278660403,-503.33894107,0.0001178,2]
[338104377,1726278660415,-500.0,0.0001178,2]
[338104378,1726278660426,-500.0,0.0001178,2]
[338104379,1726278660436,-500.0,0.0001178,2]
[338104380,1726278660446,-643.11865098,0.0001178,2]
[338104381,1726278660455,-531.18678563,0.0001178,2]
[338104382,1726278660465,-500.0,0.0001178,2]
[338104383,1726278660475,-500.0,0.0001178,2]
[338104384,1726278660484,-504.04,0.0001178,2]
[338104385,1726278660494,-500.0,0.0001178,2]
[338104386,1726278660504,-500.0,0.0001178,2]
[338104387,1726278660514,-500.0,0.0001178,2]
[338104388,1726278660525,-736.37,0.0001178,2]
[338104389,1726278660536,-500.0,0.0001178,2]
[338104390,1726278660546,-500.0,0.0001178,2]
[338104391,1726278660556,-500.0,0.0001178,2]
[338104392,1726278660566,-500.0,0.0001178,2]
[338104393,1726278660575,-500.0,0.0001178,2]
[338104394,1726278660585,-500.0,0.0001178,2]
[338104395,1726278660595,-1121.46,0.0001178,2]
[338104396,1726278660605,-500.0,0.0001178,2]
[338104397,1726278660614,-500.0,0.0001178,2]
[338104398,1726278660623,-500.0,0.0001178,2]
[338104399,1726278660633,-545.24,0.0001178,2]
[338104400,1726278660644,-695.17,0.0001178,2]
[338104401,1726278660654,-500.0,0.0001178,2]
[338104402,1726278660664,-548.40567776,0.0001178,2]
[338104403,1726278660673,-500.0,0.0001178,2]
[338104404,1726278660683,-500.0,0.0001178,2]
[338104405,1726278660692,-500.0,0.0001178,2]
[338104406,1726278660702,-500.0,0.0001178,2]
[338104407,1726278660711,-224.1955155,0.0001178,2]
[338104408,1726278660720,-539.77,0.0001178,2]
[338104409,1726278660730,-500.0,0.0001178,2]
[338104410,1726278660740,-529.74983197,0.0001178,2]
[338104411,1726278660750,-500.0,0.0001178,2]
[338104412,1726278660760,-500.0,0.0001178,2]
[338104413,1726278660769,-500.0,0.0001178,2]
[338104414,1726278660779,-500.0,0.0001178,2]
[338104415,1726278660789,-500.0,0.0001178,2]
[338104416,1726278660799,-500.0,0.0001178,2]
[338104417,1726278660811,-500.0,0.0001178,2]
[338104418,1726278660823,-537.77356176,0.0001178,2]
[338104419,1726278660832,-500.0,0.0001178,2]
[338104420,1726278660842,-500.0,0.0001178,2]
[338104421,1726278660855,-276.14877363,0.0001178,2]
[338104422,1726278660865,-503.73812481,0.0001178,2]
[338104423,1726278660877,-500.0,0.0001178,2]
[338104424,1726278660886,-500.0,0.0001178,2]
[338104425,1726278660896,-513.23961017,0.0001178,2]
[338104426,1726278660906,-500.0,0.0001178,2]
[338104427,1726278660915,-500.0,0.0001178,2]
[338104428,1726278660925,-344.66806309,0.0001178,2]
[338104429,1726278660936,-503.62612756,0.0001178,2]
[338104430,1726278660946,-500.0,0.0001178,2]
[338104431,1726278660955,-500.0,0.0001178,2]
[338104432,1726278661051,-500.0,0.0001178,2]
[338104433,1726278661067,-503.02715819,0.0001178,2]
[338104434,1726278661076,-500.0,0.0001178,2]
[338104435,1726278661086,-500.0,0.0001178,2]
[338104436,1726278661095,-500.0,0.0001178,2]
[338104437,1726278661104,-503.50484031,0.0001178,2]
[338104438,1726278661114,-500.0,0.0001178,2]
[338104439,1726278661125,-500.0,0.0001178,2]
[338104440,1726278661136,-501.80253632,0.0001178,2]
[338104441,1726278661148,-500.0,0.0001178,2]
[338104442,1726278661158,-500.0,0.0001178,2]
[338104443,1726278661167,-500.0,0.0001178,2]
[338104444,1726278661175,-703.88,0.0001178,2]
[338104445,1726278661185,-500.0,0.0001178,2]
[338104446,1726278661194,-501.18235197,0.0001178,2]
[338104447,1726278661203,-500.0,0.0001178,2]
[338104448,1726278661212,-500.0,0.0001178,2]
[338104449,1726278661221,-500.0,0.0001178,2]
[338104450,1726278661230,-500.0,0.0001178,2]
[338104451,1726278661239,-500.0,0.0001178,2]
[338104452,1726278661248,-500.0,0.0001178,2]
[338104453,1726278661257,-500.0,0.0001178,2]
[338104454,1726278661266,-502.91326946,0.0001178,2]
[338104455,1726278661275,-500.0,0.0001178,2]
[338104456,1726278661287,-500.0,0.0001178,2]
[338104457,1726278661296,-500.0,0.0001178,2]
[338104458,1726278661305,-501.74367474,0.0001178,2]
[338104459,1726278661314,-500.0,0.0001178,2]
[338104460,1726278661323,-503.46050371,0.0001178,2]
[338104461,1726278661333,-500.0,0.0001178,2]
[338104462,1726278661343,-500.0,0.0001178,2]
[338104463,1726278661352,-500.0,0.0001178,2]
[338104464,1726278661361,-506.2456293,0.0001178,2]
[338104465,1726278661371,-500.0,0.0001178,2]
[338104466,1726278661381,-500.0,0.0001178,2]
[338104467,1726278661390,-500.0,0.0001178,2]
[338104468,1726278661410,-906.63,0.0001178,2]
[338104469,1726278661421,-504.34858436,0.0001178,2]
[338104470,1726278661431,-500.0,0.0001178,2]
[338104471,1726278661444,-500.0,0.0001178,2]
[338104472,1726278661455,-500.0,0.0001178,2]
[338104473,1726278661464,-500.0,0.0001178,2]
[338104474,1726278661473,-2291.42661701,0.0001178,2]
[338104475,1726278661482,-500.0,0.0001178,2]
[338104476,1726278661492,-500.0,0.0001178,2]
[338104477,1726278661503,-500.0,0.0001178,2]
[338104478,1726278661512,-500.0,0.0001178,2]
[338104479,1726278661524,-500.0,0.0001178,2]
[338104480,1726278661534,-500.0,0.0001178,2]
[338104481,1726278661544,-500.0,0.0001178,2]
[338104482,1726278661553,-500.0,0.0001178,2]
[338104483,1726278661564,-512.57295825,0.0001178,2]
[338104484,1726278661574,-500.0,0.0001178,2]
[338104485,1726278661584,-501.15223896,0.0001178,2]
[338104486,1726278661593,-500.0,0.0001178,2]
[338104487,1726278661603,-500.0,0.0001178,2]
[338104488,1726278661615,-500.0,0.0001178,2]
[338104489,1726278661627,-500.0,0.0001178,2]
[338104490,1726278661636,-500.0,0.0001178,2]
[338104491,1726278661647,-500.0,0.0001178,2]
[338104492,1726278661656,-500.0,0.0001178,2]
[338104493,1726278661666,-500.0,0.0001178,2]
[338104494,1726278661676,-500.0,0.0001178,2]
[338104495,1726278661686,-192.26627765,0.0001178,2]
[338104496,1726278661695,-500.0,0.0001178,2]
[338104497,1726278661704,-504.30670461,0.0001178,2]
[338104498,1726278661715,-507.2500662,0.0001178,2]
[338104499,1726278661724,-451.25844922,0.0001178,2]
[338104500,1726278661735,-500.0,0.0001178,2]
[338104501,1726278661745,-502.00303333,0.0001178,2]
[338104502,1726278661755,-500.0,0.0001178,2]
[338104503,1726278661764,-500.0,0.0001178,2]
[338104504,1726278661773,-500.0,0.0001178,2]
[338104505,1726278661783,-503.0505178,0.0001178,2]
[338104506,1726278661791,-500.0,0.0001178,2]
[338104507,1726278661801,-500.0,0.0001178,2]
[338104508,1726278661811,-500.0,0.0001178,2]
[338104509,1726278661821,-503.67562684,0.0001178,2]
[338104510,1726278661830,-500.0,0.0001178,2]
[338104511,1726278661842,-437.56696294,0.0001178,2]
[338104512,1726278661852,-648.64,0.0001178,2]
[338104513,1726278661862,-500.0,0.0001178,2]
[338104514,1726278661873,-500.0,0.0001178,2]
[338104515,1726278661884,-500.0,0.0001178,2]
[338104516,1726278661895,-500.0,0.0001178,2]
[338104517,1726278661907,-500.0,0.0001178,2]
[338104518,1726278661916,-1342.53,0.0001178,2]
[338104519,1726278661926,-500.0,0.0001178,2]
[338104520,1726278661935,-5361.21,0.0001178,2]
[338104521,1726278661945,-500.0,0.0001178,2]
[338104522,1726278661954,-502.97533911,0.0001178,2]
[338104523,1726278661963,-500.0,0.0001178,2]
[338104524,1726278661972,-500.0,0.0001178,2]
[338104525,1726278661982,-500.0,0.0001178,2]
[338104526,1726278661993,-500.0,0.0001178,2]
[338104527,1726278662002,-500.0,0.0001178,2]
[338104528,1726278662013,-500.0,0.0001178,2]
[338104529,1726278662023,-500.0,0.0001178,2]
[338104530,1726278662033,-500.0,0.0001178,2]
[338104531,1726278662042,-503.44431761,0.0001178,2]
[338104532,1726278662051,-500.0,0.0001178,2]
[338104533,1726278662061,-500.0,0.0001178,2]
[338104534,1726278662070,-500.0,0.0001178,2]
[338104535,1726278662079,-902.29,0.0001178,2]
[338104536,1726278662089,-501.57239201,0.0001178,2]
[338104537,1726278662099,-500.0,0.0001178,2]
[338104538,1726278662112,-587.79769329,0.0001178,2]
[338104539,1726278662124,-500.0,0.0001178,2]
[338104540,1726278662133,-750.39,0.0001178,2]
[338104541,1726278662144,-507.38860584,0.0001178,2]
[338104542,1726278662153,-506.93730066,0.0001178,2]
[338104543,1726278662163,-500.0,0.0001178,2]
[338104544,1726278662172,-500.0,0.0001178,2]
[338104545,1726278662182,-500.0,0.0001178,2]
[338104546,1726278662193,-500.0,0.0001178,2]
[338104547,1726278662204,-500.0,0.0001178,2]
[338104548,1726278662213,-500.0,0.0001178,2]
[338104549,1726278662223,-500.0,0.0001178,2]
[338104550,1726278662232,-540.42172339,0.0001178,2]
[338104551,1726278662243,-500.0,0.0001178,2]
[338104552,1726278662254,-500.0,0.0001178,2]
[338104553,1726278662265,-500.0,0.0001178,2]
[338104554,1726278662278,-504.46124136,0.0001178,2]
[338104555,1726278662288,-500.0,0.0001178,2]
[338104556,1726278662297,-500.0,0.0001178,2]
[338104557,1726278662306,-500.0,0.0001178,2]
[338104558,1726278662315,-502.58342617,0.0001178,2]
[338104559,1726278662325,-503.82899931,0.0001178,2]
[338104560,1726278662336,-500.0,0.0001178,2]
[338104561,1726278662346,-538.69,0.0001178,2]
[338104562,1726278662355,-500.0,0.0001178,2]